fUSD/lending_fUSD_20260329
["ID","MTS","AMOUNT","RATE_DAILY","PERIOD"]
[419030853,1774787441653,-1411.77279152,0.00015568,2]
[419030854,1774787441662,-1500.0,0.00015568,2]
[419030855,1774787441672,-1500.0,0.00015568,2]
[419030856,1774787441682,-1500.0,0.00015568,2]
[419030857,1774787441691,-685.01158904,0.00015568,2]
[419030858,1774787441701,-503.54904412,0.00015568,2]
[419030859,1774787441710,-1500.0,0.00015568,2]
[419030860,1774787441720,-1500.0,0.00015568,2]
[419030861,1774787441730,-1500.0,0.00015568,2]
[419030862,1774787441740,-1500.0,0.00015568,2]
[419030863,1774787441750,-1500.0,0.00015568,2]
[419030864,1774787441759,-1332.25501618,0.00015568,2]
[419030865,1774787441769,-1007.9229115,0.00015568,2]
[419030866,1774787441778,-234.43,0.00015581,2]
[419030867,1774787441787,-500.0,0.00015593,2]
[419030868,1774787441798,-2000.0,0.000156,2]
[419030869,1774787441808,-200.0,0.000156,5]
[419030870,1774787441819,-3139.53398762,0.00015612,2]
[419030871,1774787441828,-732.73812256,0.00015634,2]
[419030872,1774787441838,-439.0,0.00015655,2]
[419030873,1774787441847,-1570.0,0.0001568,2]
[419030874,1774787441856,-6400.29460473,0.0001568,2]
[419030875,1774787441866,-439.0,0.00015686,2]
[419030876,1774787441875,-408.00985785,0.000157,2]
[419030877,1774787442018,-200.0,0.000157,5]
[419030878,1774787442028,-439.0,0.00015701,2]
[419030879,1774787442037,-500.0,0.00015723,2]
[419030880,1774787442047,-439.0,0.00015733,2]
[419030881,1774787442057,-408.00985781,0.00015733,2]
[419030882,1774787442067,-1136.94,0.00015753,2]
[419030883,1774787442077,-2000.0,0.00015755,2]
[419030884,1774787442087,-408.00985781,0.00015767,2]
[419030885,1774787442096,-1500.0,0.00015768,2]
[419030886,1774787442106,-439.0,0.0001578,2]
[419030887,1774787442115,-408.00985781,0.000158,2]
[419030888,1774787442125,-2000.0,0.000158,2]
[419030889,1774787442134,-200.0,0.000158,5]
[419030890,1774787442143,-321.11159658,0.00015801,2]
[419030891,1774787442152,-408.00985781,0.00015833,2]
[419030892,1774787442161,-2477.0,0.0001584,5]
[419030893,1774787442171,-2000.0,0.0001584,2]
[419030894,1774787442180,-2000.0,0.0001584,2]
[419030895,1774787442189,-2000.0,0.0001584,2]
[419030896,1774787442199,-500.0,0.00015854,2]
[419030897,1774787442208,-408.00985781,0.00015867,2]
[419030898,1774787442218,-200.0,0.00015871,2]
[419030899,1774787442227,-200.0,0.00015872,2]
[419030900,1774787442236,-200.0,0.00015872,2]
[419030901,1774787442245,-2000.0,0.0001589,2]
[419030902,1774787442255,-4000.0,0.00015895,2]
[419030903,1774787442264,-166.799456,0.00015897,2]
[419030904,1774787442273,-151.0,0.00015899,2]
[419030905,1774787442283,-151.0,0.00015899,2]
[419030906,1774787442293,-151.0,0.00015899,2]
[419030907,1774787442303,-988.063044,0.00015899,2]
[419030908,1774787442312,-988.063044,0.00015899,2]
[419030909,1774787442321,-988.063044,0.00015899,2]
[419030910,1774787442330,-988.063044,0.00015899,2]
[419030911,1774787442340,-20210.25894818,0.000159,2]
[419030912,1774787442349,-132966.02436532,0.000159,2]
[419030913,1774787442399,-186388.5423029,0.000159,2]
[419030914,1774787442408,-150.0,0.000159,2]
[419030915,1774787442418,-150.0,0.000159,2]
[419030916,1774787442428,-408.00985781,0.000159,2]
[419030917,1774787442438,-176.43732047,0.000159,2]
[419030918,1774787442448,-151.0,0.000159,2]
[419030919,1774787442457,-156.546991,0.000159,2]
[419030920,1774787442468,-151.0,0.000159,2]
[419030921,1774787442478,-151.0,0.000159,2]
[419030922,1774787442487,-151.0,0.000159,2]
[419030923,1774787442496,-151.0,0.000159,2]
[419030924,1774787442506,-167.301143,0.000159,2]
[419030925,1774787442516,-167.301143,0.000159,2]
[419030926,1774787442525,-167.301143,0.000159,2]
[419030927,1774787442534,-167.301143,0.000159,2]
[419030928,1774787442544,-151.0,0.000159,2]
[419030929,1774787442554,-151.0,0.000159,2]
[419030930,1774787442563,-151.0,0.000159,2]
[419030931,1774787442573,-290.876967,0.000159,2]
[419030932,1774787442583,-171.53724206,0.000159,2]
[419030933,1774787442593,-151.0,0.000159,2]
[419030934,1774787442602,-806.328531,0.000159,2]
[419030935,1774787442611,-806.328531,0.000159,2]
[419030936,1774787442621,-806.328531,0.000159,2]
[419030937,1774787442630,-806.328531,0.000159,2]
[419030938,1774787442640,-1042.775873,0.000159,2]
[419030939,1774787442649,-1042.775873,0.000159,2]
[419030940,1774787442658,-1042.775873,0.000159,2]
[419030941,1774787442668,-1042.775873,0.000159,2]
[419030942,1774787442677,-554.0,0.000159,5]
[419030943,1774787442687,-151.0,0.000159,2]
[419030944,1774787442697,-151.0,0.000159,2]
[419030945,1774787442706,-151.0,0.000159,2]
[419030946,1774787442715,-242.727737,0.000159,2]
[419030947,1774787442724,-242.727737,0.000159,2]
[419030948,1774787442733,-242.727737,0.000159,2]
[419030949,1774787442743,-151.0,0.000159,2]
[419030950,1774787442753,-242.727737,0.000159,2]
[419030951,1774787442763,-151.0,0.000159,2]
[419030952,1774787442773,-317.609625,0.000159,2]
[419030954,1774787442782,-317.609625,0.000159,2]
[419030956,1774787442792,-317.609625,0.000159,2]
[419030958,1774787442801,-317.609625,0.000159,2]
[419030959,1774787442811,-5888.0,0.00015945,2]
[419030960,1774787442820,-549.03,0.00015957,2]
[419030961,1774787442829,-5000.0,0.0001596,2]
[419030962,1774787442838,-1581.45389944,0.00015968,2]
[419030963,1774787442848,-1500.0,0.00015968,2]
[419030964,1774787442858,-1081.10726522,0.00015968,2]
[419030965,1774787442868,-1000.0,0.0001597,2]
[419030966,1774787442878,-500.4387024,0.0001597,2]
[419030967,1774787442888,-1000.0,0.0001597,2]
[419030968,1774787442898,-1000.0,0.0001597,2]
[419030969,1774787442908,-1654.65118905,0.0001597,2]
[419030970,1774787442918,-166.799456,0.00015972,2]
[419030971,1774787442927,-151.0,0.00015975,2]
[419030972,1774787442937,-151.0,0.00015975,2]
[419030973,1774787442946,-151.0,0.00015975,2]
[419030974,1774787442956,-151.0,0.00015975,2]
[419030975,1774787442967,-151.0,0.00015975,2]
[419030976,1774787442976,-167.301143,0.00015975,2]
[419030977,1774787442986,-167.301143,0.00015975,2]
[419030978,1774787442996,-167.301143,0.00015975,2]
[419030979,1774787443005,-167.301143,0.00015975,2]
[419030980,1774787443015,-151.0,0.00015975,2]
[419030981,1774787443024,-151.0,0.00015975,2]
[419030982,1774787443035,-500.0,0.00015985,2]
[419030983,1774787443045,-295.65509474,0.00015985,2]
[419030984,1774787443055,-173.19,0.00015989,2]
[419030985,1774787443065,-222.02721714,0.0001599,2]
[419030986,1774787443075,-166.799456,0.00015997,2]
[419030987,1774787443085,-453.54814526,0.00015997,2]
[419030988,1774787443095,-217.86972536,0.00015997,2]
[419030992,1774787443106,-1079.3194623,0.00015999,5]
[419030994,1774787443116,-254.0,0.00015999,2]
[419030996,1774787443125,-3003197.19367925,0.00016,2]
[419030999,1774787443175,-294712.15781202,0.00016,2]
[419031000,1774787443191,-113885.25585598,0.00016,2]
[419031001,1774787443203,-499.16331975,0.00016,2]
[419031002,1774787443215,-9136.69,0.00016,2]
[419031003,1774787443227,-92682.31139689,0.00016,2]
[419031004,1774787443239,-776.90309751,0.00016,2]
[419031005,1774787443251,-899.72188916,0.00016,2]
[419031006,1774787443262,-1410.36981531,0.00016,2]
[419031007,1774787443274,-36132.87203757,0.00016,2]
[419031008,1774787443285,-1001.22178799,0.00016,2]
[419031009,1774787443297,-1143.67568,0.00016,2]
[419031010,1774787443309,-10722.44323136,0.00016,2]
[419031011,1774787443325,-5048.431529,0.00016,2]
[419031012,1774787443337,-3351.79532226,0.00016,2]
[419031013,1774787443348,-635.10899384,0.00016,2]
[419031014,1774787443617,-151.0,0.00014784,2]
[419031015,1774787443627,-6013.0,0.00015189,2]
[419031016,1774787443638,-179052.71710317,0.00016,2]
[419031017,1774787443679,-525.63531679,0.00016,2]
[419031018,1774787443691,-132800.72012626,0.00016,2]
[419031019,1774787443865,-270096.96756653,0.00016,2]
[419031020,1774787443897,-10180.63626285,0.00016,2]
[419031021,1774787443909,-17804.86008499,0.00016,2]
[419031022,1774787443920,-322.94797957,0.00016,2]
[419031028,1774787444924,319.0,0.000255,120]
[419031031,1774787446315,-1880.04979688,0.00014705,2]
[419031032,1774787446325,-2092.64916041,0.00016,2]
[419031037,1774787963237,500.0,0.00025549,120]
[419031039,1774788278394,150.0,0.00019975,120]
[419031040,1774788374170,150.0,0.00020027,120]
[419031041,1774788374310,150.0,0.00021249,120]
[419031042,1774788374670,150.0,0.00022471,120]
[419031043,1774788375021,150.0,0.00023694,120]
[419031044,1774788375381,150.0,0.00024916,120]
[419031045,1774788601017,150.0,0.00020128,120]
[419031046,1774788601371,150.0,0.00021356,120]
[419031047,1774788601855,150.0,0.00022584,120]
[419031048,1774788602257,150.0,0.00023813,120]
[419031049,1774788608974,356.0,0.00024199,120]
[419031050,1774788611170,356.0,0.00025409,120]
[419031051,1774788627371,150.0,0.0002012,120]
[419031052,1774788627729,150.0,0.00021347,120]
[419031054,1774788632332,-993.25000001,0.00013039,2]
[419031055,1774788632499,-353.32,0.00013039,2]
[419031057,1774788632554,-2680.65999999,0.00013039,2]
[419031058,1774788632569,-311.0,0.00013039,2]
[419031059,1774788632585,-150.0,0.0001304,2]
[419031060,1774788632600,-2500.0,0.00013107,2]
[419031062,1774788632615,-333.04893,0.00013107,30]
[419031064,1774788632631,-300.0,0.00013255,2]
[419031067,1774788632645,-1200.0,0.00013255,2]
[419031069,1774788632660,-2500.0,0.00013256,2]
[419031070,1774788632675,-2500.0,0.00013256,2]
[419031071,1774788632690,-1500.0,0.00013313,2]
[419031072,1774788632705,-166.66,0.00013427,2]
[419031073,1774788632719,-1600.0,0.00013507,2]
[419031074,1774788632736,-900.0,0.000136,4]
[419031075,1774788632751,-500.0,0.00013698,2]
[419031076,1774788632767,-477.79719058,0.00013698,2]
[419031077,1774788632781,-527.96,0.00013698,2]
[419031078,1774788632796,-200.0,0.00013699,2]
[419031079,1774788632811,-6291.95,0.00013699,2]
[419031080,1774788632827,-1800.0,0.000137,5]
[419031081,1774788632841,-500.0,0.00013734,2]
[419031082,1774788632856,-600.87743374,0.00013734,2]
[419031083,1774788632871,-500.0,0.00013734,2]
[419031084,1774788632886,-500.0,0.00013734,2]
[419031085,1774788632903,-2700.0,0.000138,5]
[419031086,1774788632918,-500.0,0.00013818,2]
[419031087,1774788632933,-500.0,0.00013818,2]
[419031088,1774788632948,-500.0,0.00013818,2]
[419031089,1774788632964,-500.0,0.00013818,2]
[419031090,1774788632980,-500.0,0.00013818,2]
[419031091,1774788632996,-500.0,0.00013818,2]
[419031092,1774788633011,-491.18499489,0.00013818,2]
[419031093,1774788633026,-506.75169863,0.00013818,2]
[419031094,1774788633042,-500.0,0.00013818,2]
[419031095,1774788633056,-500.0,0.00013818,2]
[419031096,1774788633072,-500.0,0.00013818,2]
[419031097,1774788633088,-150.0,0.00013818,2]
[419031098,1774788633103,-500.0,0.00013818,2]
[419031099,1774788633119,-162.55307459,0.00013818,2]
[419031100,1774788633133,-500.0,0.00013818,2]
[419031101,1774788633150,-500.0,0.00013818,2]
[419031102,1774788633164,-500.0,0.00013818,2]
[419031103,1774788633179,-500.0,0.00013818,2]
[419031104,1774788633193,-500.0,0.00013818,2]
[419031105,1774788633207,-500.0,0.00013818,2]
[419031106,1774788633222,-500.0,0.00013818,2]
[419031107,1774788633236,-500.0,0.00013818,2]
[419031108,1774788633252,-396.68097798,0.00013818,2]
[419031109,1774788633266,-166.66,0.0001387,2]
[419031110,1774788633281,-3600.0,0.000139,5]
[419031111,1774788633297,-150.0,0.00013951,2]
[419031112,1774788633311,-500.0,0.00013952,2]
[419031113,1774788633325,-500.0,0.00013952,2]
[419031114,1774788633342,-500.0,0.00013952,2]
[419031115,1774788633357,-500.0,0.00013952,2]
[419031116,1774788633373,-500.0,0.00013952,2]
[419031117,1774788633387,-500.0,0.00013952,2]
[419031118,1774788633402,-500.0,0.00013952,2]
[419031119,1774788633417,-500.0,0.00013952,2]
[419031120,1774788633431,-500.0,0.00013952,2]
[419031121,1774788633446,-500.0,0.00013952,2]
[419031122,1774788633462,-500.0,0.00013952,2]
[419031123,1774788633476,-500.0,0.00013952,2]
[419031124,1774788633491,-500.0,0.00013952,2]
[419031125,1774788633506,-500.0,0.00013952,2]
[419031126,1774788633521,-500.0,0.00013952,2]
[419031127,1774788633535,-500.0,0.00013952,2]
[419031128,1774788633550,-500.0,0.00013952,2]
[419031129,1774788633565,-500.0,0.00013952,2]
[419031130,1774788633580,-500.0,0.00013952,2]
[419031131,1774788633595,-500.0,0.00013952,2]
[419031132,1774788633609,-500.0,0.00013952,2]
[419031133,1774788633624,-500.0,0.00013952,2]
[419031134,1774788633638,-391.44438281,0.00013952,2]
[419031135,1774788633653,-500.0,0.00013952,2]
[419031136,1774788633668,-500.0,0.00013952,2]
[419031137,1774788633683,-500.0,0.00013952,2]
[419031138,1774788633699,-500.0,0.00013952,2]
[419031139,1774788633713,-150.0,0.00013952,2]
[419031140,1774788633728,-500.0,0.00013952,2]
[419031141,1774788633743,-500.0,0.00013952,2]
[419031142,1774788633758,-500.0,0.00013952,2]
[419031143,1774788633772,-500.0,0.00013952,2]
[419031144,1774788633788,-257.80148729,0.00013952,2]
[419031145,1774788633803,-500.0,0.00013952,2]
[419031146,1774788633817,-150.0,0.00013952,2]
[419031147,1774788633832,-500.0,0.00013952,2]
[419031148,1774788633846,-500.0,0.00013952,2]
[419031149,1774788633862,-500.0,0.00013952,2]
[419031150,1774788633877,-316.54999376,0.00013952,2]
[419031151,1774788633887,-500.0,0.00013952,2]
[419031152,1774788633897,-500.0,0.00013952,2]
[419031153,1774788633907,-500.0,0.00013952,2]
[419031154,1774788633917,-396.397481,0.00013952,2]
[419031155,1774788634277,-150.0,0.00013952,2]
[419031156,1774788634310,-500.0,0.00013974,2]
[419031157,1774788634325,-500.0,0.00013974,2]
[419031158,1774788634335,-500.0,0.00013974,2]
[419031159,1774788634345,-500.0,0.00013974,2]
[419031160,1774788634355,-500.0,0.00013974,2]
[419031161,1774788634365,-500.0,0.00013974,2]
[419031162,1774788634377,-500.0,0.00013974,2]
[419031163,1774788634386,-500.0,0.00013974,2]
[419031164,1774788634396,-500.0,0.00013974,2]
[419031165,1774788634405,-384.61867322,0.00013974,2]
[419031166,1774788634415,-151.0,0.00013988,2]
[419031167,1774788634426,-151.0,0.0001399,2]
[419031168,1774788634436,-500.0,0.00014072,2]
[419031169,1774788634446,-500.0,0.00014072,2]
[419031170,1774788634456,-500.0,0.00014072,2]
[419031171,1774788634466,-500.0,0.00014072,2]
[419031172,1774788634476,-500.0,0.00014072,2]
[419031173,1774788634486,-500.0,0.00014072,2]
[419031174,1774788634496,-500.0,0.00014072,2]
[419031175,1774788634506,-500.0,0.00014072,2]
[419031176,1774788634516,-500.0,0.00014072,2]
[419031177,1774788634525,-500.0,0.00014072,2]
[419031178,1774788634535,-500.0,0.00014072,2]
[419031179,1774788634544,-500.0,0.00014072,2]
[419031180,1774788634554,-150.0,0.00014099,2]
[419031181,1774788634563,-150.0,0.00014099,2]
[419031182,1774788634573,-150.0,0.00014099,2]
[419031183,1774788634583,-500.0,0.00014099,2]
[419031184,1774788634592,-500.0,0.00014099,2]
[419031185,1774788634603,-500.0,0.00014099,2]
[419031186,1774788634614,-150.0,0.00014099,2]
[419031187,1774788634623,-173.15425465,0.00014099,2]
[419031188,1774788634632,-500.0,0.00014099,2]
[419031189,1774788634642,-500.0,0.00014099,2]
[419031190,1774788634652,-500.0,0.00014099,2]
[419031191,1774788634662,-500.0,0.00014099,2]
[419031192,1774788634672,-500.0,0.00014099,2]
[419031193,1774788634682,-196.31640517,0.00014099,2]
[419031194,1774788634693,-150.0,0.00014099,2]
[419031195,1774788634702,-150.0,0.00014099,2]
[419031196,1774788634712,-150.0,0.00014099,2]
[419031197,1774788634722,-150.0,0.00014099,2]
[419031198,1774788634732,-150.0,0.00014099,2]
[419031199,1774788634741,-150.0,0.00014099,2]
[419031200,1774788634751,-500.0,0.00014099,2]
[419031201,1774788634761,-150.0,0.00014099,2]
[419031202,1774788634771,-150.0,0.00014099,2]
[419031203,1774788634780,-500.0,0.00014099,2]
[419031204,1774788634790,-248.0269298,0.00014099,2]
[419031205,1774788634800,-251.88601728,0.00014099,2]
[419031206,1774788634809,-232.93019597,0.00014099,2]
[419031207,1774788634819,-150.0,0.00014099,2]
[419031208,1774788634829,-150.0,0.00014099,2]
[419031209,1774788634839,-150.0,0.00014099,2]
[419031210,1774788634849,-153.74366055,0.00014099,2]
[419031211,1774788634859,-500.0,0.00014099,2]
[419031212,1774788634869,-500.0,0.00014099,2]
[419031213,1774788634878,-500.0,0.00014099,2]
[419031214,1774788634888,-500.0,0.00014099,2]
[419031215,1774788634897,-500.0,0.00014099,2]
[419031216,1774788634907,-500.0,0.00014099,2]
[419031217,1774788634916,-500.0,0.00014099,2]
[419031218,1774788634925,-500.0,0.00014099,2]
[419031219,1774788634935,-500.0,0.00014099,2]
[419031220,1774788634946,-500.0,0.00014099,2]
[419031221,1774788634956,-500.0,0.00014099,2]
[419031222,1774788634965,-500.0,0.00014099,2]
[419031223,1774788634975,-436.48877466,0.00014099,2]
[419031224,1774788634985,-500.0,0.00014107,2]
[419031225,1774788634995,-1386.78395259,0.00014107,2]
[419031226,1774788635004,-500.0,0.00014107,2]
[419031227,1774788635014,-500.0,0.00014107,2]
[419031228,1774788635023,-500.0,0.00014107,2]
[419031229,1774788635035,-500.0,0.00014107,2]
[419031230,1774788635045,-500.0,0.00014107,2]
[419031231,1774788635055,-500.0,0.00014107,2]
[419031232,1774788635065,-500.0,0.00014107,2]
[419031233,1774788635075,-500.0,0.00014107,2]
[419031234,1774788635084,-500.0,0.00014107,2]
[419031235,1774788635094,-500.0,0.00014107,2]
[419031236,1774788635103,-500.0,0.00014107,2]
[419031237,1774788635114,-500.0,0.00014107,2]
[419031238,1774788635123,-500.0,0.00014107,2]
[419031239,1774788635133,-500.0,0.00014107,2]
[419031240,1774788635142,-500.0,0.00014107,2]
[419031241,1774788635152,-500.0,0.00014107,2]
[419031242,1774788635163,-500.0,0.00014107,2]
[419031243,1774788635172,-500.0,0.00014107,2]
[419031244,1774788635183,-500.0,0.00014107,2]
[419031245,1774788635193,-151.0,0.00014107,2]
[419031246,1774788635203,-151.0,0.00014107,2]
[419031247,1774788635213,-151.0,0.00014107,2]
[419031248,1774788635223,-151.0,0.00014107,2]
[419031249,1774788635233,-151.0,0.00014107,2]
[419031250,1774788635243,-151.0,0.00014107,2]
[419031251,1774788635252,-151.0,0.00014107,2]
[419031252,1774788635262,-151.0,0.00014107,2]
[419031253,1774788635272,-151.0,0.00014107,2]
[419031254,1774788635282,-151.0,0.00014107,2]
[419031255,1774788635291,-151.0,0.00014107,2]
[419031256,1774788635302,-151.0,0.00014107,2]
[419031257,1774788635312,-500.0,0.00014115,2]
[419031258,1774788635322,-500.0,0.00014115,2]
[419031259,1774788635332,-500.0,0.00014115,2]
[419031260,1774788635341,-500.0,0.00014115,2]
[419031261,1774788635351,-500.0,0.00014115,2]
[419031262,1774788635361,-500.0,0.00014115,2]
[419031263,1774788635371,-500.0,0.00014115,2]
[419031264,1774788635381,-500.0,0.00014115,2]
[419031265,1774788635390,-500.0,0.00014115,2]
[419031266,1774788635400,-500.0,0.00014115,2]
[419031267,1774788635409,-500.0,0.00014115,2]
[419031268,1774788635419,-500.0,0.00014115,2]
[419031269,1774788635430,-500.0,0.00014115,2]
[419031270,1774788635440,-500.0,0.00014115,2]
[419031271,1774788635450,-500.0,0.00014115,2]
[419031272,1774788635459,-500.0,0.00014115,2]
[419031273,1774788635469,-500.0,0.00014115,2]
[419031274,1774788635480,-500.0,0.00014115,2]
[419031275,1774788635489,-500.0,0.00014115,2]
[419031276,1774788635499,-500.0,0.00014115,2]
[419031277,1774788635509,-500.0,0.00014115,2]
[419031278,1774788635519,-500.0,0.00014115,2]
[419031279,1774788635529,-500.0,0.00014115,2]
[419031280,1774788635539,-500.0,0.00014115,2]
[419031281,1774788635549,-500.0,0.00014115,2]
[419031282,1774788635559,-500.0,0.00014115,2]
[419031283,1774788635568,-500.0,0.00014115,2]
[419031284,1774788635578,-500.0,0.00014115,2]
[419031285,1774788635588,-500.0,0.00014115,2]
[419031286,1774788635598,-500.0,0.00014115,2]
[419031287,1774788635608,-500.0,0.00014115,2]
[419031288,1774788635618,-500.0,0.00014115,2]
[419031289,1774788635628,-500.0,0.00014115,2]
[419031290,1774788635638,-500.0,0.00014115,2]
[419031291,1774788635649,-500.0,0.00014115,2]
[419031292,1774788635659,-405.31469671,0.00014115,2]
[419031293,1774788635669,-500.0,0.00014115,2]
[419031294,1774788635678,-500.0,0.00014115,2]
[419031295,1774788635688,-500.0,0.00014115,2]
[419031296,1774788635698,-500.0,0.00014115,2]
[419031297,1774788635708,-500.0,0.00014115,2]
[419031298,1774788635717,-500.0,0.00014115,2]
[419031299,1774788635727,-60000.0,0.00014115,2]
[419031300,1774788635736,-2404.94,0.00014144,2]
[419031301,1774788635747,-160.0,0.00014226,2]
[419031302,1774788635756,-160.0,0.00014226,2]
[419031303,1774788635766,-959.8630956,0.00014226,2]
[419031304,1774788635775,-154.51750164,0.00014248,2]
[419031305,1774788635785,-2500.0,0.00014258,2]
[419031306,1774788635795,-166.66,0.00014313,2]
[419031307,1774788635805,-600.0,0.00014343,2]
[419031308,1774788635815,-600.0,0.00014343,2]
[419031309,1774788635825,-600.0,0.00014343,2]
[419031310,1774788635835,-600.0,0.00014343,2]
[419031311,1774788635844,-600.0,0.00014343,2]
[419031312,1774788635854,-300.0,0.00014343,2]
[419031313,1774788635864,-500.0,0.00014343,2]
[419031314,1774788635874,-500.0,0.00014343,2]
[419031315,1774788635884,-500.0,0.00014343,2]
[419031316,1774788635893,-500.0,0.00014343,2]
[419031317,1774788635903,-500.0,0.00014343,2]
[419031318,1774788635912,-200.0,0.00014343,2]
[419031319,1774788635922,-2500.0,0.00014344,2]
[419031320,1774788635932,-2500.0,0.00014344,2]
[419031321,1774788635942,-300.0,0.00014344,2]
[419031322,1774788635951,-300.0,0.00014344,2]
[419031323,1774788635961,-300.0,0.00014344,2]
[419031324,1774788635970,-300.0,0.00014344,2]
[419031325,1774788635980,-160.0,0.00014369,2]
[419031326,1774788635990,-500.00364233,0.00014371,2]
[419031327,1774788636001,-500.0,0.00014371,2]
[419031328,1774788636011,-500.0,0.00014371,2]
[419031329,1774788636021,-7729.92638965,0.00014372,2]
[419031330,1774788636032,-10733.86370015,0.00014372,2]
[419031331,1774788636042,-150.0,0.000144,2]
[419031332,1774788636051,-8924.97,0.00014438,2]
[419031333,1774788636061,-174.61919141,0.00014446,2]
[419031334,1774788636071,-500.0,0.00014446,2]
[419031335,1774788636081,-500.0,0.00014446,2]
[419031336,1774788636091,-2029.37890662,0.00014446,2]
[419031337,1774788636101,-500.0,0.00014446,2]
[419031338,1774788636111,-500.0,0.00014446,2]
[419031339,1774788636121,-500.0,0.00014446,2]
[419031340,1774788636131,-500.0,0.00014446,2]
[419031341,1774788636140,-500.0,0.00014446,2]
[419031342,1774788636149,-500.0,0.00014446,2]
[419031343,1774788636159,-500.0,0.00014446,2]
[419031344,1774788636169,-500.0,0.00014446,2]
[419031345,1774788636179,-500.0,0.00014446,2]
[419031346,1774788636188,-500.0,0.00014446,2]
[419031347,1774788636199,-693.3919763,0.00014446,2]
[419031348,1774788636208,-500.0,0.00014446,2]
[419031349,1774788636218,-500.0,0.00014446,2]
[419031350,1774788636228,-500.0,0.00014446,2]
[419031351,1774788636238,-500.0,0.00014446,2]
[419031352,1774788636248,-188.18576529,0.00014446,2]
[419031353,1774788636258,-500.0,0.00014446,2]
[419031354,1774788636268,-578.20924308,0.00014446,2]
[419031355,1774788636278,-500.0,0.00014446,2]
[419031356,1774788636288,-500.0,0.00014446,2]
[419031357,1774788636298,-151.0,0.00014446,2]
[419031358,1774788636307,-500.0,0.00014446,2]
[419031359,1774788636317,-500.0,0.00014446,2]
[419031360,1774788636328,-500.0,0.00014446,2]
[419031361,1774788636338,-500.0,0.00014446,2]
[419031362,1774788636348,-500.0,0.00014446,2]
[419031363,1774788636358,-500.0,0.00014446,2]
[419031364,1774788636368,-500.0,0.00014446,2]
[419031365,1774788636377,-500.0,0.00014446,2]
[419031366,1774788636387,-500.0,0.00014446,2]
[419031367,1774788636397,-500.0,0.00014446,2]
[419031368,1774788636407,-500.0,0.00014446,2]
[419031369,1774788636417,-500.0,0.00014446,2]
[419031370,1774788636427,-151.0,0.00014446,2]
[419031371,1774788636437,-200.0,0.00014446,2]
[419031372,1774788636447,-209.40437684,0.00014446,2]
[419031373,1774788636456,-250.0,0.00014446,2]
[419031374,1774788636466,-250.0,0.00014446,2]
[419031375,1774788636476,-250.0,0.00014446,2]
[419031376,1774788636485,-171.67616089,0.00014446,2]
[419031377,1774788636495,-250.0,0.00014446,2]
[419031378,1774788636504,-250.0,0.00014446,2]
[419031379,1774788636514,-250.0,0.00014446,2]
[419031380,1774788636524,-250.0,0.00014446,2]
[419031381,1774788636534,-250.0,0.00014446,2]